[Event "*** Titled Tuesday Blitz"]
[Site "Chess.com"]
[Date "2019.09.03"]
[Round "1"]
[White "laboratorio25"]
[Black "LiamVrolijk"]
[Result "0-1"]
[WhiteElo "2397"]
[BlackElo "2763"]
[TimeControl "180+2"]
[EndTime "15:08:05 PDT"]
[Termination "LiamVrolijk won by resignation"]

1. e4 {[%clk 0:03:01.9]} 1... e5 {[%clk 0:03:00.6]} 2. Nf3 {[%clk 0:03:02.8]}
2... Nc6 {[%clk 0:03:02.1]} 3. Bb5 {[%clk 0:03:03.9]} 3... a6 {[%clk 0:03:03.3]}
4. Ba4 {[%clk 0:03:04.7]} 4... Nf6 {[%clk 0:03:04.1]} 5. O-O {[%clk 0:03:05.6]}
5... Bc5 {[%clk 0:03:05.4]} 6. c3 {[%clk 0:03:04.5]} 6... b5 {[%clk 0:03:06]} 7.
Bb3 {[%clk 0:03:01.1]} 7... d6 {[%clk 0:03:07]} 8. d4 {[%clk 0:02:58]} 8... Bb6
{[%clk 0:03:08]} 9. h3 {[%clk 0:02:58.5]} 9... h6 {[%clk 0:03:07.1]} 10. Re1
{[%clk 0:02:47.9]} 10... O-O {[%clk 0:03:08]} 11. a4 {[%clk 0:02:47.7]} 11...
Rb8 {[%clk 0:03:07.4]} 12. Na3 {[%clk 0:02:01.8]} 12... Re8 {[%clk 0:02:16.8]}
13. d5 {[%clk 0:01:42.5]} 13... Ne7 {[%clk 0:02:17.4]} 14. axb5 {[%clk
0:01:38.8]} 14... axb5 {[%clk 0:02:14]} 15. Nxb5 {[%clk 0:01:35.6]} 15... Ng6
{[%clk 0:02:14.5]} 16. Na7 {[%clk 0:01:06.5]} 16... Bd7 {[%clk 0:02:12]} 17. Nc6
{[%clk 0:00:58.8]} 17... Bxc6 {[%clk 0:02:12.3]} 18. dxc6 {[%clk 0:01:00.7]}
18... Nh5 {[%clk 0:02:06.1]} 19. Be3 {[%clk 0:00:40.8]} 19... Bxe3 {[%clk
0:02:06.8]} 20. fxe3 {[%clk 0:00:31.8]} 20... Nf6 {[%clk 0:02:08.2]} 21. Nd2
{[%clk 0:00:29.3]} 21... Ne7 {[%clk 0:02:07.7]} 22. Rf1 {[%clk 0:00:28.6]} 22...
Nxc6 {[%clk 0:02:07.8]} 23. Ba4 {[%clk 0:00:27.9]} 23... Rb6 {[%clk 0:02:06.6]}
24. b4 {[%clk 0:00:28.9]} 24... Rf8 {[%clk 0:01:49.8]} 25. Nc4 {[%clk
0:00:29.7]} 25... Ra6 {[%clk 0:01:50.5]} 26. b5 {[%clk 0:00:30.5]} 26... Rxa4
{[%clk 0:01:52.1]} 27. Rxa4 {[%clk 0:00:31.2]} 27... Ne7 {[%clk 0:01:53.6]} 28.
Qd3 {[%clk 0:00:29.2]} 28... Nd7 {[%clk 0:01:53.6]} 29. Ra7 {[%clk 0:00:25.4]}
29... Nc5 {[%clk 0:01:53.6]} 30. Qc2 {[%clk 0:00:26.1]} 30... Nc8 {[%clk
0:01:43.3]} 31. Ra8 {[%clk 0:00:26]} 31... Qh4 {[%clk 0:01:43.5]} 32. Nd2 {[%clk
0:00:17.9]} 32... Qg3 {[%clk 0:01:43.9]} 33. Rf3 {[%clk 0:00:17.1]} 33... Qe1+
{[%clk 0:01:45.2]} 34. Kh2 {[%clk 0:00:18.6]} 34... Nb6 {[%clk 0:01:39.6]} 35.
Rxf8+ {[%clk 0:00:18.3]} 35... Kxf8 {[%clk 0:01:41.5]} 36. Nb3 {[%clk
0:00:19.6]} 36... Ne6 {[%clk 0:01:41.9]} 37. Qa2 {[%clk 0:00:19.5]} 37... Ng5
{[%clk 0:01:40.9]} 38. Rf2 {[%clk 0:00:17.7]} 38... Qxe3 {[%clk 0:01:41.7]} 39.
Re2 {[%clk 0:00:14.6]} 39... Qf4+ {[%clk 0:01:41.9]} 40. Kg1 {[%clk 0:00:15]}
40... Nxe4 {[%clk 0:01:43.4]} 41. Qc2 {[%clk 0:00:15.4]} 41... f5 {[%clk
0:01:42.4]} 42. Qd3 {[%clk 0:00:14.9]} 42... Qg3 {[%clk 0:01:36.2]} 43. Qxg3
{[%clk 0:00:11.6]} 43... Nxg3 {[%clk 0:01:38.1]} 44. Rf2 {[%clk 0:00:13]} 44...
f4 {[%clk 0:01:38.4]} 45. Nd2 {[%clk 0:00:14.2]} 45... g5 {[%clk 0:01:36.5]} 46.
c4 {[%clk 0:00:14.8]} 46... e4 {[%clk 0:01:37.9]} 47. Nf1 {[%clk 0:00:13.6]}
47... e3 {[%clk 0:01:39.8]} 48. Rc2 {[%clk 0:00:14.4]} 48... e2 {[%clk
0:01:41.2]} 49. Nxg3 {[%clk 0:00:12.4]} 49... e1=Q+ {[%clk 0:01:42.2]} 0-1

[Event "*** Titled Tuesday Blitz"]
[Site "Chess.com"]
[Date "2019.09.03"]
[Round "1"]
[White "chessdjw"]
[Black "ChristianAlm"]
[Result "1-0"]
[WhiteElo "2691"]
[BlackElo "2321"]
[TimeControl "180+2"]
[EndTime "15:08:05 PDT"]
[Termination "chessdjw won by checkmate"]

1. d4 {[%clk 0:03:01.9]} 1... Nf6 {[%clk 0:02:49.5]} 2. c4 {[%clk 0:03:02.4]}
2... g6 {[%clk 0:02:48.2]} 3. g3 {[%clk 0:03:01.7]} 3... d5 {[%clk 0:02:48.9]}
4. cxd5 {[%clk 0:03:00.9]} 4... Qxd5 {[%clk 0:02:45.6]} 5. Nf3 {[%clk
0:03:00.9]} 5... c5 {[%clk 0:02:45.6]} 6. Nc3 {[%clk 0:02:52.3]} 6... Qd8 {[%clk
0:02:45.6]} 7. Bg2 {[%clk 0:02:42.7]} 7... Bg7 {[%clk 0:02:43.9]} 8. O-O {[%clk
0:02:40.8]} 8... cxd4 {[%clk 0:02:43]} 9. Qxd4 {[%clk 0:02:41.2]} 9... O-O
{[%clk 0:02:41]} 10. Rd1 {[%clk 0:02:41.5]} 10... Qxd4 {[%clk 0:02:41]} 11. Nxd4
{[%clk 0:02:41.8]} 11... Nbd7 {[%clk 0:02:39.2]} 12. Be3 {[%clk 0:02:31.6]}
12... Ne5 {[%clk 0:02:34.3]} 13. Ndb5 {[%clk 0:02:27]} 13... Bf5 {[%clk
0:02:09]} 14. Bxb7 {[%clk 0:02:11.9]} 14... Rab8 {[%clk 0:02:09.5]} 15. Ba6
{[%clk 0:02:12.7]} 15... Nc6 {[%clk 0:01:52.2]} 16. a3 {[%clk 0:02:00.4]} 16...
Bc2 {[%clk 0:01:24.2]} 17. Rdc1 {[%clk 0:01:56.6]} 17... Bf5 {[%clk 0:01:19.7]}
18. b4 {[%clk 0:01:48.2]} 18... Ng4 {[%clk 0:01:17.1]} 19. Bc5 {[%clk
0:01:43.6]} 19... Rfd8 {[%clk 0:01:10.2]} 20. Rd1 {[%clk 0:01:35.7]} 20... Re8
{[%clk 0:00:32.6]} 21. Rac1 {[%clk 0:01:33.8]} 21... Rbd8 {[%clk 0:00:23.2]} 22.
Rxd8 {[%clk 0:01:21.1]} 22... Rxd8 {[%clk 0:00:25.1]} 23. Nxa7 {[%clk
0:01:10.9]} 23... Nxa7 {[%clk 0:00:21.5]} 24. Bxa7 {[%clk 0:01:12.8]} 24... Bxc3
{[%clk 0:00:15.8]} 25. Rxc3 {[%clk 0:01:13.1]} 25... Rd1+ {[%clk 0:00:16.9]} 26.
Kg2 {[%clk 0:01:13.9]} 26... h5 {[%clk 0:00:09.7]} 27. f3 {[%clk 0:01:13.6]}
27... Nf6 {[%clk 0:00:05.8]} 28. e4 {[%clk 0:01:12.3]} 28... Be6 {[%clk
0:00:05.5]} 29. b5 {[%clk 0:01:11.6]} 29... Rd2+ {[%clk 0:00:06.5]} 30. Bf2
{[%clk 0:01:12.6]} 30... g5 {[%clk 0:00:07.3]} 31. b6 {[%clk 0:01:10.2]} 31...
g4 {[%clk 0:00:07.5]} 32. b7 {[%clk 0:01:10.6]} 32... gxf3+ {[%clk 0:00:08.4]}
33. Kxf3 {[%clk 0:01:11.4]} 33... Rb2 {[%clk 0:00:05.5]} 34. Rc8+ {[%clk
0:01:10.5]} 34... Kg7 {[%clk 0:00:03.1]} 35. b8=Q {[%clk 0:01:11.5]} 35... Bg4+
{[%clk 0:00:03.6]} 36. Ke3 {[%clk 0:01:09.7]} 36... Ra2 {[%clk 0:00:03.8]} 37.
Be1 {[%clk 0:01:05.1]} 37... Rxa3+ {[%clk 0:00:04.4]} 38. Bc3 {[%clk 0:01:06]}
38... e5 {[%clk 0:00:03.6]} 39. Qxe5 {[%clk 0:01:04.5]} 39... Kh7 {[%clk
0:00:02.7]} 40. Rh8+ {[%clk 0:01:01.2]} 40... Kxh8 {[%clk 0:00:02.6]} 41. Qxf6+
{[%clk 0:01:02.3]} 41... Kh7 {[%clk 0:00:04.5]} 42. Qg7# {[%clk 0:01:03.7]} 1-0

[Event "*** Titled Tuesday Blitz"]
[Site "Chess.com"]
[Date "2019.09.03"]
[Round "1"]
[White "Gubajdullin"]
[Black "Jenia84"]
[Result "1-0"]
[WhiteElo "2612"]
[BlackElo "2244"]
[TimeControl "180+2"]
[EndTime "15:08:08 PDT"]
[Termination "Gubajdullin won by resignation"]

1. d4 {[%clk 0:03:01.5]} 1... Nf6 {[%clk 0:03:00.4]} 2. Bf4 {[%clk 0:03:01.1]}
2... e6 {[%clk 0:03:00.5]} 3. e3 {[%clk 0:03:02]} 3... d5 {[%clk 0:03:01.9]} 4.
Nf3 {[%clk 0:03:01.2]} 4... Bd6 {[%clk 0:03:03.3]} 5. Bg3 {[%clk 0:03:00]} 5...
O-O {[%clk 0:03:04.2]} 6. Bd3 {[%clk 0:03:00.6]} 6... c5 {[%clk 0:03:04.7]} 7.
c3 {[%clk 0:03:00.8]} 7... Nc6 {[%clk 0:03:04.5]} 8. Nbd2 {[%clk 0:03:01.7]}
8... Qc7 {[%clk 0:03:01.1]} 9. dxc5 {[%clk 0:03:00.9]} 9... Bxg3 {[%clk
0:03:01.8]} 10. hxg3 {[%clk 0:03:02]} 10... e5 {[%clk 0:03:02.9]} 11. e4 {[%clk
0:03:03.2]} 11... dxe4 {[%clk 0:03:02.5]} 12. Nxe4 {[%clk 0:03:04]} 12... Nxe4
{[%clk 0:03:03.4]} 13. Bxe4 {[%clk 0:03:05]} 13... h6 {[%clk 0:02:50.1]} 14. Qc2
{[%clk 0:02:50.6]} 14... f5 {[%clk 0:02:40.5]} 15. Bd5+ {[%clk 0:02:50.7]} 15...
Kh8 {[%clk 0:02:40.6]} 16. Nh4 {[%clk 0:02:47.4]} 16... Rf6 {[%clk 0:02:37.6]}
17. g4 {[%clk 0:02:46.5]} 17... Ne7 {[%clk 0:02:32.8]} 18. Bb3 {[%clk
0:02:41.5]} 18... fxg4 {[%clk 0:02:29.8]} 19. O-O-O {[%clk 0:02:40.7]} 19... Be6
{[%clk 0:02:21.8]} 20. Rd6 {[%clk 0:02:37.8]} 20... Bxb3 {[%clk 0:02:06.5]} 21.
Qxb3 {[%clk 0:02:38.5]} 21... Rxd6 {[%clk 0:02:07.1]} 22. cxd6 {[%clk
0:02:38.6]} 22... Qxd6 {[%clk 0:02:08.3]} 23. Qxb7 {[%clk 0:02:37]} 23... Rd8
{[%clk 0:02:06.9]} 24. a3 {[%clk 0:02:22.7]} 24... Qd2+ {[%clk 0:02:01.7]} 25.
Kb1 {[%clk 0:02:22.7]} 25... Qd3+ {[%clk 0:02:02]} 26. Ka1 {[%clk 0:02:22.9]}
26... Ng6 {[%clk 0:01:58.6]} 27. Nxg6+ {[%clk 0:02:16]} 27... Qxg6 {[%clk
0:01:58.8]} 28. Qxa7 {[%clk 0:02:15.2]} 28... Qf6 {[%clk 0:01:59.5]} 29. Qe3
{[%clk 0:02:13.1]} 29... Qc6 {[%clk 0:01:53]} 30. Qxe5 {[%clk 0:02:08.8]} 30...
Rd2 {[%clk 0:01:48.2]} 31. Qe3 {[%clk 0:01:53.8]} 31... Qd5 {[%clk 0:01:38.3]}
32. Rc1 {[%clk 0:01:47.8]} 32... Rd3 {[%clk 0:01:36]} 33. Qe8+ {[%clk
0:01:44.5]} 33... Kh7 {[%clk 0:01:36.4]} 34. g3 {[%clk 0:01:45.2]} 34... Rd2
{[%clk 0:01:32.2]} 35. Qe3 {[%clk 0:01:42.9]} 35... Rd3 {[%clk 0:01:32.7]} 36.
Qf4 {[%clk 0:01:37]} 36... Rf3 {[%clk 0:01:31.6]} 37. Qxg4 {[%clk 0:01:37.8]}
37... Rxf2 {[%clk 0:01:32.6]} 38. Qd4 {[%clk 0:01:33.1]} 38... Qf3 {[%clk
0:01:24.8]} 39. Rd1 {[%clk 0:01:28.2]} 39... Qg2 {[%clk 0:01:16.6]} 40. Qd3+
{[%clk 0:01:23.9]} 40... Kh8 {[%clk 0:01:15.1]} 41. Qd8+ {[%clk 0:01:23.8]}
41... Kh7 {[%clk 0:01:15.7]} 42. Qd3+ {[%clk 0:01:24]} 42... Kh8 {[%clk
0:01:16.4]} 43. Qg6 {[%clk 0:01:18.9]} 43... Rf1 {[%clk 0:01:11]} 44. Rxf1
{[%clk 0:01:11.8]} 44... Qxf1+ {[%clk 0:01:11.6]} 45. Qb1 {[%clk 0:01:11.1]}
45... Qf2 {[%clk 0:01:08.9]} 46. g4 {[%clk 0:01:09]} 46... Qg3 {[%clk
0:01:07.8]} 47. Qf5 {[%clk 0:01:08.2]} 47... Qg1+ {[%clk 0:00:58]} 48. Ka2
{[%clk 0:01:08.1]} 48... Qa7 {[%clk 0:00:56.4]} 49. c4 {[%clk 0:01:07.4]} 49...
Qa4 {[%clk 0:00:56.4]} 50. Qe6 {[%clk 0:01:04.8]} 50... Kh7 {[%clk 0:00:51.5]}
51. c5 {[%clk 0:01:02.9]} 51... g6 {[%clk 0:00:51.1]} 52. c6 {[%clk 0:01:02.5]}
1-0

[Event "*** Titled Tuesday Blitz"]
[Site "Chess.com"]
[Date "2019.09.03"]
[Round "1"]
[White "jlucasvf"]
[Black "saraswathii"]
[Result "1-0"]
[WhiteElo "2668"]
[BlackElo "2305"]
[TimeControl "180+2"]
[EndTime "15:08:09 PDT"]
[Termination "jlucasvf won by checkmate"]

1. e4 {[%clk 0:03:01.2]} 1... c5 {[%clk 0:03:00.6]} 2. Nf3 {[%clk 0:03:02.1]}
2... e6 {[%clk 0:03:01.8]} 3. d4 {[%clk 0:03:02.4]} 3... cxd4 {[%clk 0:03:03.7]}
4. Bg5 {[%clk 0:03:02.6]} 4... Qb6 {[%clk 0:03:01.1]} 5. Qxd4 {[%clk 0:03:03.1]}
5... Nc6 {[%clk 0:02:57.9]} 6. Qxb6 {[%clk 0:03:03.3]} 6... axb6 {[%clk
0:02:59.8]} 7. c3 {[%clk 0:03:04.7]} 7... h6 {[%clk 0:02:58.8]} 8. Bh4 {[%clk
0:03:03.4]} 8... Bc5 {[%clk 0:02:58.3]} 9. Nbd2 {[%clk 0:03:03.6]} 9... Nge7
{[%clk 0:02:58.5]} 10. Bg3 {[%clk 0:02:53.8]} 10... Ng6 {[%clk 0:02:58.6]} 11.
b4 {[%clk 0:02:50.7]} 11... Be7 {[%clk 0:02:58.8]} 12. Nc4 {[%clk 0:02:52.1]}
12... Bd8 {[%clk 0:02:52.8]} 13. Nd6+ {[%clk 0:02:53.2]} 13... Ke7 {[%clk
0:02:53.5]} 14. Bb5 {[%clk 0:02:41.2]} 14... h5 {[%clk 0:02:13.8]} 15. h4 {[%clk
0:02:22.8]} 15... Na7 {[%clk 0:02:07.4]} 16. Be2 {[%clk 0:02:07.2]} 16... Nc6
{[%clk 0:01:42.2]} 17. O-O {[%clk 0:02:03.4]} 17... Rf8 {[%clk 0:01:31.9]} 18.
Rfd1 {[%clk 0:02:04]} 18... Bc7 {[%clk 0:01:21.2]} 19. Rd2 {[%clk 0:01:54.5]}
19... Rg8 {[%clk 0:00:58.5]} 20. Rad1 {[%clk 0:01:53.6]} 20... Bxd6 {[%clk
0:00:58.3]} 21. Bxd6+ {[%clk 0:01:53.9]} 21... Ke8 {[%clk 0:00:58]} 22. Nd4
{[%clk 0:01:42.7]} 22... Nxd4 {[%clk 0:00:51.6]} 23. cxd4 {[%clk 0:01:44.6]}
23... Nxh4 {[%clk 0:00:46.4]} 24. g3 {[%clk 0:01:41.2]} 24... Ng6 {[%clk
0:00:46.6]} 25. Bxh5 {[%clk 0:01:42.8]} 25... Rh8 {[%clk 0:00:46.1]} 26. Be2
{[%clk 0:01:31.6]} 26... Ne7 {[%clk 0:00:20.5]} 27. b5 {[%clk 0:01:32]} 27...
Ng6 {[%clk 0:00:19.6]} 28. Rc2 {[%clk 0:01:31.3]} 28... Kd8 {[%clk 0:00:20.9]}
29. Rdc1 {[%clk 0:01:31.9]} 29... Re8 {[%clk 0:00:21.4]} 30. f4 {[%clk
0:01:26.3]} 30... Nh8 {[%clk 0:00:21.6]} 31. Bh5 {[%clk 0:01:09.3]} 31... g6
{[%clk 0:00:20.9]} 32. Be2 {[%clk 0:01:10.2]} 32... f6 {[%clk 0:00:22]} 33. e5
{[%clk 0:01:03.7]} 33... f5 {[%clk 0:00:19]} 34. Bc7+ {[%clk 0:00:57.4]} 34...
Ke7 {[%clk 0:00:18.6]} 35. Bxb6 {[%clk 0:00:58.9]} 35... d6 {[%clk 0:00:16.1]}
36. Rc7+ {[%clk 0:00:54.6]} 36... Bd7 {[%clk 0:00:12.2]} 37. Rxd7+ {[%clk
0:00:55.3]} 37... Kxd7 {[%clk 0:00:12.5]} 38. Rc7+ {[%clk 0:00:57.2]} 38... Kd8
{[%clk 0:00:13.7]} 39. exd6 {[%clk 0:00:58.8]} 39... Rf8 {[%clk 0:00:08]} 40.
Rf7+ {[%clk 0:00:48.7]} 40... Ke8 {[%clk 0:00:08.4]} 41. Re7# {[%clk 0:00:49.4]}
1-0

[Event "*** Titled Tuesday Blitz"]
[Site "Chess.com"]
[Date "2019.09.03"]
[Round "1"]
[White "KL31"]
[Black "jefferyx"]
[Result "1/2-1/2"]
[WhiteElo "2509"]
[BlackElo "2948"]
[TimeControl "180+2"]
[EndTime "15:08:14 PDT"]
[Termination "Game drawn by repetition"]

1. d4 {[%clk 0:03:01.9]} 1... Nf6 {[%clk 0:02:56.5]} 2. Nf3 {[%clk 0:03:02.8]}
2... g6 {[%clk 0:02:57]} 3. c4 {[%clk 0:03:02.6]} 3... Bg7 {[%clk 0:02:58.3]} 4.
Nc3 {[%clk 0:03:03.9]} 4... d5 {[%clk 0:02:59.4]} 5. Qb3 {[%clk 0:03:04.3]} 5...
dxc4 {[%clk 0:02:59.8]} 6. Qxc4 {[%clk 0:03:06.2]} 6... Na6 {[%clk 0:03:01.3]}
7. e4 {[%clk 0:03:01.9]} 7... c5 {[%clk 0:03:02.6]} 8. d5 {[%clk 0:03:00.8]}
8... O-O {[%clk 0:03:02.9]} 9. Be2 {[%clk 0:03:01.7]} 9... e6 {[%clk 0:03:04.6]}
10. O-O {[%clk 0:03:02.4]} 10... exd5 {[%clk 0:03:05.4]} 11. exd5 {[%clk
0:03:04.3]} 11... Re8 {[%clk 0:03:03]} 12. Rd1 {[%clk 0:03:05.3]} 12... Bd7
{[%clk 0:03:04]} 13. Be3 {[%clk 0:02:51.5]} 13... Ng4 {[%clk 0:03:01.3]} 14. Bf4
{[%clk 0:02:47.6]} 14... Qb6 {[%clk 0:02:38.2]} 15. Rd2 {[%clk 0:02:22.7]} 15...
Qa5 {[%clk 0:02:04.4]} 16. h3 {[%clk 0:01:52.8]} 16... b5 {[%clk 0:02:05.2]} 17.
Nxb5 {[%clk 0:01:13.6]} 17... Rxe2 {[%clk 0:02:06]} 18. Qxe2 {[%clk 0:01:10]}
18... Bxb5 {[%clk 0:02:07.3]} 19. Qe7 {[%clk 0:01:10.7]} 19... Nf6 {[%clk
0:01:59]} 20. Ng5 {[%clk 0:00:55.8]} 20... Be8 {[%clk 0:01:37.9]} 21. d6 {[%clk
0:00:39.9]} 21... Qd8 {[%clk 0:01:38.5]} 22. Qb7 {[%clk 0:00:33.2]} 22... Nb4
{[%clk 0:01:29.8]} 23. Rad1 {[%clk 0:00:34]} 23... h6 {[%clk 0:01:28.4]} 24. d7
{[%clk 0:00:34.3]} 24... hxg5 {[%clk 0:00:57.5]} 25. Bc7 {[%clk 0:00:33.9]}
25... Bxd7 {[%clk 0:00:36.1]} 26. Bxd8 {[%clk 0:00:33.8]} 26... Bc6 {[%clk
0:00:38]} 27. Qc7 {[%clk 0:00:30.8]} 27... Ne4 {[%clk 0:00:36.9]} 28. Rd7 {[%clk
0:00:23.8]} 28... Bxd7 {[%clk 0:00:37.9]} 29. Rxd7 {[%clk 0:00:24.1]} 29... Bd4
{[%clk 0:00:37.1]} 30. Rxf7 {[%clk 0:00:24]} 30... Rxd8 {[%clk 0:00:38]} 31.
Qxd8+ {[%clk 0:00:19.4]} 31... Kxf7 {[%clk 0:00:39.9]} 32. Qd7+ {[%clk
0:00:16.6]} 32... Kf6 {[%clk 0:00:41]} 33. Qd8+ {[%clk 0:00:17.1]} 33... Kf7
{[%clk 0:00:42.2]} 34. Qd7+ {[%clk 0:00:17.3]} 34... Kf6 {[%clk 0:00:43.5]} 35.
Qd8+ {[%clk 0:00:11]} 35... Ke5 {[%clk 0:00:39.5]} 36. Qe7+ {[%clk 0:00:10.5]}
36... Kd5 {[%clk 0:00:37.5]} 37. Qb7+ {[%clk 0:00:10.8]} 37... Ke5 {[%clk
0:00:38.4]} 38. Qe7+ {[%clk 0:00:11.6]} 38... Kf5 {[%clk 0:00:27.7]} 39. Qd7+
{[%clk 0:00:13]} 39... Kf6 {[%clk 0:00:24.1]} 1/2-1/2

[Event "*** Titled Tuesday Blitz"]
[Site "Chess.com"]
[Date "2019.09.03"]
[Round "1"]
[White "DarkAlekhine"]
[Black "iturrizaga"]
[Result "0-1"]
[WhiteElo "2499"]
[BlackElo "2934"]
[TimeControl "180+2"]
[EndTime "15:08:34 PDT"]
[Termination "iturrizaga won by resignation"]

1. Nf3 {[%clk 0:03:01.9]} 1... c5 {[%clk 0:02:57.4]} 2. c4 {[%clk 0:03:02]} 2...
g6 {[%clk 0:02:58.7]} 3. Nc3 {[%clk 0:03:00.7]} 3... Bg7 {[%clk 0:02:59.7]} 4.
e3 {[%clk 0:03:01.8]} 4... Nf6 {[%clk 0:02:59.5]} 5. d4 {[%clk 0:03:03]} 5...
cxd4 {[%clk 0:03:01.4]} 6. exd4 {[%clk 0:03:04.7]} 6... d5 {[%clk 0:03:03]} 7.
cxd5 {[%clk 0:03:04.3]} 7... Nxd5 {[%clk 0:03:04.9]} 8. Bc4 {[%clk 0:03:03.4]}
8... Nb6 {[%clk 0:03:05.9]} 9. Bb3 {[%clk 0:03:01.5]} 9... O-O {[%clk
0:03:07.5]} 10. O-O {[%clk 0:02:59.5]} 10... Nc6 {[%clk 0:03:08.6]} 11. d5
{[%clk 0:02:51.5]} 11... Na5 {[%clk 0:03:09]} 12. Re1 {[%clk 0:02:28.9]} 12...
Bg4 {[%clk 0:03:02.3]} 13. Bg5 {[%clk 0:02:26.2]} 13... Re8 {[%clk 0:03:01.1]}
14. h3 {[%clk 0:01:42.1]} 14... Bxf3 {[%clk 0:02:56.1]} 15. Qxf3 {[%clk
0:01:44]} 15... Nxb3 {[%clk 0:02:57.6]} 16. axb3 {[%clk 0:01:45.6]} 16... Qd6
{[%clk 0:02:58.9]} 17. Rad1 {[%clk 0:01:33.1]} 17... Qb4 {[%clk 0:02:55.5]} 18.
Ne4 {[%clk 0:01:29.4]} 18... Nxd5 {[%clk 0:02:52.2]} 19. Bd2 {[%clk 0:01:23.9]}
19... Qb5 {[%clk 0:02:48.2]} 20. Ng5 {[%clk 0:01:24.9]} 20... Nf6 {[%clk
0:02:43.5]} 21. Bc3 {[%clk 0:01:25.8]} 21... Qxg5 {[%clk 0:02:43.2]} 22. Re5
{[%clk 0:01:24.3]} 22... Qh6 {[%clk 0:02:32]} 23. g4 {[%clk 0:00:34.9]} 23...
Nxg4 {[%clk 0:02:06.6]} 24. hxg4 {[%clk 0:00:33.2]} 24... Bxe5 {[%clk
0:02:07.7]} 25. Bxe5 {[%clk 0:00:35.1]} 25... Rad8 {[%clk 0:02:04.4]} 26. Ra1
{[%clk 0:00:33.9]} 26... Qg5 {[%clk 0:02:00.4]} 27. Qg3 {[%clk 0:00:18.4]} 27...
h5 {[%clk 0:01:51.1]} 28. gxh5 {[%clk 0:00:18.6]} 28... Qxg3+ {[%clk 0:01:51.1]}
29. Bxg3 {[%clk 0:00:20.5]} 29... gxh5 {[%clk 0:01:51.4]} 30. Rxa7 {[%clk
0:00:22.4]} 30... Rd7 {[%clk 0:01:52.3]} 31. Kg2 {[%clk 0:00:23.9]} 31... f6
{[%clk 0:01:53.4]} 32. b4 {[%clk 0:00:25.1]} 32... Kf7 {[%clk 0:01:54.2]} 33. b5
{[%clk 0:00:26]} 33... Rg8 {[%clk 0:01:55.7]} 34. Kf3 {[%clk 0:00:26.2]} 34...
Rg5 {[%clk 0:01:53]} 35. b6 {[%clk 0:00:25.6]} 35... Rb5 {[%clk 0:01:54.4]} 36.
Bc7 {[%clk 0:00:26.4]} 36... Rxb2 {[%clk 0:01:55.2]} 37. Rxb7 {[%clk 0:00:27.7]}
37... Rdd2 {[%clk 0:01:49.7]} 38. Bg3 {[%clk 0:00:26.4]} 38... h4 {[%clk
0:01:44.9]} 39. Bxh4 {[%clk 0:00:12.5]} 39... Rd6 {[%clk 0:01:45.6]} 40. Bg3
{[%clk 0:00:11.7]} 40... Rdxb6 {[%clk 0:01:46.6]} 41. Ra7 {[%clk 0:00:12.4]}
41... Rb7 {[%clk 0:01:47.2]} 42. Ra6 {[%clk 0:00:13.1]} 42... R7b3+ {[%clk
0:01:48.5]} 43. Kg4 {[%clk 0:00:13]} 43... e5 {[%clk 0:01:50.4]} 44. Kf5 {[%clk
0:00:11.5]} 44... Rxf2+ {[%clk 0:01:44.5]} 45. Bxf2 {[%clk 0:00:10.2]} 45...
Rf3+ {[%clk 0:01:46]} 46. Ke4 {[%clk 0:00:09.9]} 46... Rxf2 {[%clk 0:01:47.5]}
47. Kd5 {[%clk 0:00:07.2]} 47... Rd2+ {[%clk 0:01:48.1]} 48. Ke4 {[%clk
0:00:08]} 48... Rd4+ {[%clk 0:01:50]} 49. Ke3 {[%clk 0:00:09]} 49... Kg6 {[%clk
0:01:50.3]} 50. Re6 {[%clk 0:00:10.3]} 50... Kf5 {[%clk 0:01:51]} 51. Re8 {[%clk
0:00:11.7]} 51... Rh4 {[%clk 0:01:51.8]} 52. Ra8 {[%clk 0:00:12.5]} 52... Rh3+
{[%clk 0:01:53.1]} 53. Kf2 {[%clk 0:00:14.1]} 53... Kf4 {[%clk 0:01:54.5]} 54.
Ra4+ {[%clk 0:00:13.2]} 54... e4 {[%clk 0:01:55.7]} 55. Ra5 {[%clk 0:00:14.1]}
55... f5 {[%clk 0:01:56.7]} 56. Kf1 {[%clk 0:00:14.5]} 56... Rh2 {[%clk
0:01:55.9]} 57. Rb5 {[%clk 0:00:14.6]} 57... Ra2 {[%clk 0:01:56.1]} 58. Rc5
{[%clk 0:00:15.3]} 58... e3 {[%clk 0:01:56.6]} 59. Rb5 {[%clk 0:00:14.6]} 59...
Ke4 {[%clk 0:01:57.5]} 60. Rb4+ {[%clk 0:00:14.9]} 60... Kf3 {[%clk 0:01:58.4]}
61. Rb1 {[%clk 0:00:16.1]} 61... Rg2 {[%clk 0:01:59.1]} 62. Re1 {[%clk
0:00:16.3]} 62... e2+ {[%clk 0:01:58.8]} 63. Rxe2 {[%clk 0:00:16.4]} 63... Rxe2
{[%clk 0:02:00.4]} 0-1